[Event "*** Titled Tuesday Blitz"]
[Site "Chess.com"]
[Date "2020.04.28"]
[Round "1"]
[White "marianokar"]
[Black "Incognito_Knight"]
[Result "1-0"]
[WhiteElo "2356"]
[BlackElo "2653"]
[TimeControl "180+1"]
[EndTime "10:08:13 PDT"]
[Termination "marianokar won by checkmate"]

1. e4 {[%clk 0:02:58.8]} 1... c5 {[%clk 0:02:58.5]} 2. Nf3 {[%clk 0:02:57.2]}
2... e6 {[%clk 0:02:58.8]} 3. d3 {[%clk 0:02:54.3]} 3... Nc6 {[%clk 0:02:56.9]}
4. g3 {[%clk 0:02:53.3]} 4... g6 {[%clk 0:02:55.4]} 5. Bg2 {[%clk 0:02:53]} 5...
Bg7 {[%clk 0:02:55.6]} 6. O-O {[%clk 0:02:53.5]} 6... Nge7 {[%clk 0:02:54.7]} 7.
c3 {[%clk 0:02:48.5]} 7... d5 {[%clk 0:02:52.8]} 8. Re1 {[%clk 0:02:46.1]} 8...
O-O {[%clk 0:02:52.5]} 9. e5 {[%clk 0:02:31.9]} 9... b5 {[%clk 0:02:28.8]} 10.
d4 {[%clk 0:02:27]} 10... Qb6 {[%clk 0:02:25.2]} 11. dxc5 {[%clk 0:02:18]} 11...
Qc7 {[%clk 0:02:10.4]} 12. Bf4 {[%clk 0:02:04.1]} 12... a5 {[%clk 0:02:08.3]}
13. Nbd2 {[%clk 0:01:55.8]} 13... Bb7 {[%clk 0:01:58.7]} 14. Rb1 {[%clk
0:01:45.2]} 14... Rfd8 {[%clk 0:01:57.6]} 15. Nb3 {[%clk 0:01:36.9]} 15... Nb8
{[%clk 0:01:36.1]} 16. Nbd4 {[%clk 0:01:01.5]} 16... Qxc5 {[%clk 0:01:32.7]} 17.
Be3 {[%clk 0:01:01.3]} 17... Qc8 {[%clk 0:01:03.9]} 18. Nxb5 {[%clk 0:01:00.2]}
18... Nf5 {[%clk 0:01:04.1]} 19. Bg5 {[%clk 0:00:54]} 19... Rd7 {[%clk
0:01:02.1]} 20. g4 {[%clk 0:00:44.8]} 20... Ne7 {[%clk 0:00:50.9]} 21. Nd6
{[%clk 0:00:44.1]} 21... Qf8 {[%clk 0:00:51.1]} 22. Nxb7 {[%clk 0:00:40.2]}
22... Rxb7 {[%clk 0:00:51.1]} 23. Nd4 {[%clk 0:00:40.2]} 23... Nd7 {[%clk
0:00:45.4]} 24. Bf4 {[%clk 0:00:37.8]} 24... Rc8 {[%clk 0:00:41.1]} 25. Qe2
{[%clk 0:00:36.3]} 25... Bh6 {[%clk 0:00:31.5]} 26. Bg3 {[%clk 0:00:31.9]} 26...
g5 {[%clk 0:00:32]} 27. Rec1 {[%clk 0:00:25.8]} 27... Ng6 {[%clk 0:00:30.2]} 28.
c4 {[%clk 0:00:23.8]} 28... Rbc7 {[%clk 0:00:27.9]} 29. b3 {[%clk 0:00:21.2]}
29... Nf4 {[%clk 0:00:25]} 30. Bxf4 {[%clk 0:00:20.4]} 30... gxf4 {[%clk
0:00:25.9]} 31. Nb5 {[%clk 0:00:19.8]} 31... Rc5 {[%clk 0:00:14.9]} 32. Nd6
{[%clk 0:00:17]} 32... R8c7 {[%clk 0:00:15.3]} 33. Rd1 {[%clk 0:00:16.2]} 33...
dxc4 {[%clk 0:00:13.6]} 34. Nxc4 {[%clk 0:00:17.1]} 34... Qg7 {[%clk 0:00:12]}
35. Rd3 {[%clk 0:00:15.1]} 35... Bg5 {[%clk 0:00:10.1]} 36. Rbd1 {[%clk
0:00:15.1]} 36... Nf8 {[%clk 0:00:04.5]} 37. h3 {[%clk 0:00:15]} 37... Bh4
{[%clk 0:00:03.9]} 38. Bf3 {[%clk 0:00:14]} 38... Bg5 {[%clk 0:00:03.9]} 39. Kg2
{[%clk 0:00:14]} 39... h6 {[%clk 0:00:03.8]} 40. Qe4 {[%clk 0:00:14]} 40... Ng6
{[%clk 0:00:03.9]} 41. Kf1 {[%clk 0:00:12.5]} 41... Kh7 {[%clk 0:00:02]} 42. Rd7
{[%clk 0:00:12.7]} 42... Rxd7 {[%clk 0:00:02.2]} 43. Rxd7 {[%clk 0:00:13.4]}
43... Kh8 {[%clk 0:00:02.3]} 44. Qb7 {[%clk 0:00:11.3]} 44... Nxe5 {[%clk
0:00:02.2]} 45. Nxe5 {[%clk 0:00:09.9]} 45... Qxe5 {[%clk 0:00:02.4]} 46. Rxf7
{[%clk 0:00:10.1]} 46... Rc1+ {[%clk 0:00:02.7]} 47. Kg2 {[%clk 0:00:10.2]}
47... Qc5 {[%clk 0:00:02.9]} 48. Rh7+ {[%clk 0:00:09.5]} 48... Kg8 {[%clk
0:00:03.4]} 49. Qf7# {[%clk 0:00:10]} 1-0

[Event "*** Titled Tuesday Blitz"]
[Site "Chess.com"]
[Date "2020.04.28"]
[Round "1"]
[White "Xeniya2005"]
[Black "Paladin61"]
[Result "0-1"]
[WhiteElo "2259"]
[BlackElo "2592"]
[TimeControl "180+1"]
[EndTime "10:08:13 PDT"]
[Termination "Paladin61 won by resignation"]

1. e4 {[%clk 0:03:00.9]} 1... c5 {[%clk 0:02:59.9]} 2. Nf3 {[%clk 0:03:00.2]}
2... d6 {[%clk 0:03:00]} 3. d4 {[%clk 0:03:00.9]} 3... cxd4 {[%clk 0:03:00.2]}
4. Nxd4 {[%clk 0:03:01.6]} 4... Nf6 {[%clk 0:03:00.3]} 5. Nc3 {[%clk 0:03:02.3]}
5... a6 {[%clk 0:03:00.8]} 6. Nb3 {[%clk 0:03:02.4]} 6... Nbd7 {[%clk
0:02:59.9]} 7. g4 {[%clk 0:03:02.3]} 7... h6 {[%clk 0:02:55.8]} 8. Bg2 {[%clk
0:02:58.3]} 8... b5 {[%clk 0:02:54.3]} 9. h3 {[%clk 0:02:45.5]} 9... Bb7 {[%clk
0:02:50.1]} 10. Qe2 {[%clk 0:02:43.8]} 10... g5 {[%clk 0:02:42.4]} 11. O-O
{[%clk 0:02:42.5]} 11... Ne5 {[%clk 0:02:35.3]} 12. f4 {[%clk 0:02:35.2]} 12...
gxf4 {[%clk 0:02:36.2]} 13. Bxf4 {[%clk 0:02:35.8]} 13... e6 {[%clk 0:02:20.8]}
14. Bxe5 {[%clk 0:02:32.4]} 14... dxe5 {[%clk 0:02:20.6]} 15. Rad1 {[%clk
0:02:30.5]} 15... Qb6+ {[%clk 0:02:15.5]} 16. Kh2 {[%clk 0:02:29.4]} 16... Be7
{[%clk 0:02:08.4]} 17. Qf3 {[%clk 0:02:22.4]} 17... Rg8 {[%clk 0:01:52.3]} 18.
Qg3 {[%clk 0:02:12]} 18... Qc7 {[%clk 0:01:39.5]} 19. a3 {[%clk 0:02:07.8]}
19... Rd8 {[%clk 0:01:38.6]} 20. Rxd8+ {[%clk 0:02:06.4]} 20... Kxd8 {[%clk
0:01:35.3]} 21. Qe3 {[%clk 0:02:05.3]} 21... Rg6 {[%clk 0:01:28.8]} 22. Rd1+
{[%clk 0:01:57.6]} 22... Ke8 {[%clk 0:01:28.2]} 23. Qd3 {[%clk 0:01:47.6]} 23...
h5 {[%clk 0:01:25.6]} 24. gxh5 {[%clk 0:01:07.9]} 24... Nxh5 {[%clk 0:01:25.1]}
25. Ne2 {[%clk 0:01:06.3]} 25... f5 {[%clk 0:01:18.1]} 26. Rg1 {[%clk
0:00:56.5]} 26... Rxg2+ {[%clk 0:01:13.1]} 27. Rxg2 {[%clk 0:00:54.6]} 27...
Bxe4 {[%clk 0:01:14]} 28. Qd2 {[%clk 0:00:30]} 28... Bxg2 {[%clk 0:01:10.8]} 29.
Kxg2 {[%clk 0:00:30.5]} 29... Qc6+ {[%clk 0:01:09.9]} 30. Kh2 {[%clk 0:00:30.7]}
30... Qf3 {[%clk 0:01:08]} 31. Ng1 {[%clk 0:00:28.9]} 31... Qg3+ {[%clk
0:01:06.4]} 32. Kh1 {[%clk 0:00:29.7]} 32... Nf4 {[%clk 0:00:55.9]} 33. Qh2
{[%clk 0:00:22.1]} 33... Qe1 {[%clk 0:00:51.9]} 34. Qd2 {[%clk 0:00:19.3]} 34...
Qe4+ {[%clk 0:00:47.8]} 35. Kh2 {[%clk 0:00:18.9]} 35... Nd5 {[%clk 0:00:43.1]}
36. Qd3 {[%clk 0:00:15.1]} 36... Qf4+ {[%clk 0:00:42.3]} 37. Kh1 {[%clk
0:00:15.4]} 37... e4 {[%clk 0:00:42.4]} 38. Qe2 {[%clk 0:00:14.5]} 38... Qe5
{[%clk 0:00:39.3]} 39. c3 {[%clk 0:00:13.7]} 39... Nf4 {[%clk 0:00:35.4]} 40.
Qe3 {[%clk 0:00:12.7]} 40... Bd6 {[%clk 0:00:35]} 41. Nd4 {[%clk 0:00:09]} 41...
Nh5 {[%clk 0:00:34.7]} 42. Qf2 {[%clk 0:00:08.6]} 42... Ng3+ {[%clk 0:00:33.7]}
43. Kg2 {[%clk 0:00:08.5]} 43... Kd7 {[%clk 0:00:33.2]} 44. Nge2 {[%clk
0:00:08]} 44... Nxe2 {[%clk 0:00:31.4]} 45. Nxe2 {[%clk 0:00:07.1]} 45... f4
{[%clk 0:00:32.3]} 46. Kf1 {[%clk 0:00:05.9]} 46... f3 {[%clk 0:00:31.3]} 47.
Ng1 {[%clk 0:00:06]} 47... Bc5 {[%clk 0:00:28.9]} 48. Qd2+ {[%clk 0:00:05.8]}
48... Kc7 {[%clk 0:00:28.2]} 49. Qd1 {[%clk 0:00:03.9]} 49... Qg3 {[%clk
0:00:26.1]} 0-1

[Event "*** Titled Tuesday Blitz"]
[Site "Chess.com"]
[Date "2020.04.28"]
[Round "1"]
[White "Corpescador"]
[Black "Aygehovit1992"]
[Result "1-0"]
[WhiteElo "2363"]
[BlackElo "2669"]
[TimeControl "180+1"]
[EndTime "10:08:14 PDT"]
[Termination "Corpescador won by checkmate"]

1. e4 {[%clk 0:03:00.9]} 1... d6 {[%clk 0:02:58.8]} 2. d4 {[%clk 0:03:00.6]}
2... g6 {[%clk 0:02:59.1]} 3. Nc3 {[%clk 0:03:00.7]} 3... Bg7 {[%clk 0:02:59.3]}
4. Be3 {[%clk 0:03:00.9]} 4... c6 {[%clk 0:02:59.4]} 5. Nf3 {[%clk 0:02:52.9]}
5... Nf6 {[%clk 0:02:58.3]} 6. h3 {[%clk 0:02:52.6]} 6... O-O {[%clk 0:02:57.6]}
7. a4 {[%clk 0:02:50.8]} 7... Qc7 {[%clk 0:02:56.8]} 8. a5 {[%clk 0:02:45.1]}
8... e5 {[%clk 0:02:56]} 9. dxe5 {[%clk 0:02:33.6]} 9... dxe5 {[%clk 0:02:56.9]}
10. Bc4 {[%clk 0:02:33.6]} 10... Nbd7 {[%clk 0:02:39.9]} 11. O-O {[%clk
0:02:24.1]} 11... Nh5 {[%clk 0:02:30.5]} 12. Nd2 {[%clk 0:02:13.4]} 12... Nf4
{[%clk 0:02:28.3]} 13. Re1 {[%clk 0:02:08.5]} 13... b5 {[%clk 0:02:21.3]} 14.
axb6 {[%clk 0:02:01.7]} 14... Nxb6 {[%clk 0:02:20.9]} 15. Bf1 {[%clk 0:01:57.1]}
15... Be6 {[%clk 0:02:18.2]} 16. b3 {[%clk 0:01:51.9]} 16... Rfd8 {[%clk
0:02:17.3]} 17. Qc1 {[%clk 0:01:36.6]} 17... h5 {[%clk 0:02:15.6]} 18. Nf3
{[%clk 0:01:33.7]} 18... f6 {[%clk 0:02:06.6]} 19. Na4 {[%clk 0:01:09.9]} 19...
Bf7 {[%clk 0:01:38.1]} 20. Nc5 {[%clk 0:01:02.2]} 20... Ne6 {[%clk 0:01:37.6]}
21. Nxe6 {[%clk 0:00:51.3]} 21... Bxe6 {[%clk 0:01:38.5]} 22. Ra6 {[%clk
0:00:50]} 22... c5 {[%clk 0:01:30.2]} 23. c4 {[%clk 0:00:35.4]} 23... Bf7 {[%clk
0:01:25.5]} 24. Qa3 {[%clk 0:00:32.3]} 24... Bf8 {[%clk 0:01:24.3]} 25. Ra1
{[%clk 0:00:30.4]} 25... Rd7 {[%clk 0:01:22.4]} 26. Nd2 {[%clk 0:00:28.7]} 26...
f5 {[%clk 0:01:15.1]} 27. exf5 {[%clk 0:00:20.2]} 27... gxf5 {[%clk 0:01:14.8]}
28. Nf3 {[%clk 0:00:20.7]} 28... f4 {[%clk 0:01:13.2]} 29. Bc1 {[%clk
0:00:19.3]} 29... e4 {[%clk 0:01:04]} 30. Ng5 {[%clk 0:00:18.9]} 30... Bg7
{[%clk 0:00:57.1]} 31. Bb2 {[%clk 0:00:16.3]} 31... Bxb2 {[%clk 0:00:53.9]} 32.
Qxb2 {[%clk 0:00:16]} 32... Rd4 {[%clk 0:00:53.8]} 33. Nxf7 {[%clk 0:00:14.8]}
33... Kxf7 {[%clk 0:00:52.4]} 34. b4 {[%clk 0:00:14.5]} 34... Nd7 {[%clk
0:00:23.3]} 35. bxc5 {[%clk 0:00:11.1]} 35... Qxc5 {[%clk 0:00:24.2]} 36. R1a5
{[%clk 0:00:09.8]} 36... Rb8 {[%clk 0:00:16.5]} 37. Qa1 {[%clk 0:00:06]} 37...
Qe7 {[%clk 0:00:03]} 38. Qxd4 {[%clk 0:00:05.5]} 38... Rb1 {[%clk 0:00:01.9]}
39. Rxa7 {[%clk 0:00:05.1]} 39... e3 {[%clk 0:00:02.2]} 40. Rxd7 {[%clk
0:00:04.1]} 40... e2 {[%clk 0:00:02.2]} 41. Rxe7+ {[%clk 0:00:03.5]} 41... Kxe7
{[%clk 0:00:02.2]} 42. Qe4+ {[%clk 0:00:04]} 42... Kd6 {[%clk 0:00:01.9]} 43.
Qxb1 {[%clk 0:00:04.9]} 43... Kc7 {[%clk 0:00:02.7]} 44. Qe1 {[%clk 0:00:05.2]}
44... exf1=Q+ {[%clk 0:00:02.8]} 45. Qxf1 {[%clk 0:00:05.2]} 45... f3 {[%clk
0:00:03.7]} 46. Qe2 {[%clk 0:00:06.1]} 46... Kb6 {[%clk 0:00:04.1]} 47. Qxf3
{[%clk 0:00:06.4]} 47... Kxa5 {[%clk 0:00:04.1]} 48. Qxh5+ {[%clk 0:00:07.3]}
48... Kb4 {[%clk 0:00:05]} 49. Qd5 {[%clk 0:00:08.2]} 49... Kc3 {[%clk 0:00:05]}
50. Qb5 {[%clk 0:00:09.1]} 50... Kd4 {[%clk 0:00:04.9]} 51. c5 {[%clk 0:00:10]}
51... Ke4 {[%clk 0:00:04.8]} 52. c6 {[%clk 0:00:10.9]} 52... Kf4 {[%clk
0:00:05.4]} 53. c7 {[%clk 0:00:11.8]} 53... Ke4 {[%clk 0:00:05.9]} 54. Qd7
{[%clk 0:00:12.7]} 54... Ke5 {[%clk 0:00:05.5]} 55. c8=Q {[%clk 0:00:13.6]}
55... Kf6 {[%clk 0:00:06.4]} 56. Qc4 {[%clk 0:00:14.5]} 56... Kg5 {[%clk
0:00:06.6]} 57. Qdd5+ {[%clk 0:00:15.4]} 57... Kf6 {[%clk 0:00:06.7]} 58. Qcc6+
{[%clk 0:00:16.3]} 58... Ke7 {[%clk 0:00:07.2]} 59. Qdd7+ {[%clk 0:00:16.5]}
59... Kf8 {[%clk 0:00:07.2]} 60. Qcc8# {[%clk 0:00:16.7]} 1-0

[Event "*** Titled Tuesday Blitz"]
[Site "Chess.com"]
[Date "2020.04.28"]
[Round "1"]
[White "Barcelona_Guy"]
[Black "Kopytkin"]
[Result "1/2-1/2"]
[WhiteElo "2705"]
[BlackElo "2386"]
[TimeControl "180+1"]
[EndTime "10:08:15 PDT"]
[Termination "Game drawn - insufficient material"]

1. e4 {[%clk 0:03:00.9]} 1... Nf6 {[%clk 0:02:58.8]} 2. e5 {[%clk 0:03:00.6]}
2... Nd5 {[%clk 0:02:59]} 3. Nf3 {[%clk 0:03:00.7]} 3... d6 {[%clk 0:02:58.2]}
4. d4 {[%clk 0:03:01.3]} 4... g6 {[%clk 0:02:57.7]} 5. Be2 {[%clk 0:03:00.6]}
5... Bg7 {[%clk 0:02:57.5]} 6. O-O {[%clk 0:03:01.2]} 6... O-O {[%clk
0:02:57.6]} 7. Re1 {[%clk 0:02:58]} 7... Nc6 {[%clk 0:02:40.7]} 8. exd6 {[%clk
0:02:52.2]} 8... cxd6 {[%clk 0:02:40.2]} 9. h3 {[%clk 0:02:43.5]} 9... e5 {[%clk
0:02:25.7]} 10. c4 {[%clk 0:02:43.3]} 10... Nb6 {[%clk 0:02:25.6]} 11. Be3
{[%clk 0:02:39.8]} 11... e4 {[%clk 0:02:06.8]} 12. Nh2 {[%clk 0:02:11.7]} 12...
f5 {[%clk 0:02:05.4]} 13. Qd2 {[%clk 0:02:04.3]} 13... d5 {[%clk 0:01:12.2]} 14.
Na3 {[%clk 0:01:38.7]} 14... Be6 {[%clk 0:01:01.4]} 15. c5 {[%clk 0:01:33.1]}
15... Nc4 {[%clk 0:00:32.8]} 16. Nxc4 {[%clk 0:01:25.7]} 16... dxc4 {[%clk
0:00:33.7]} 17. Rac1 {[%clk 0:01:19.9]} 17... Nxd4 {[%clk 0:00:30.8]} 18. Bxc4
{[%clk 0:01:17.2]} 18... Bxc4 {[%clk 0:00:29.1]} 19. Rxc4 {[%clk 0:01:18.1]}
19... Nc6 {[%clk 0:00:27.6]} 20. Qe2 {[%clk 0:01:03.2]} 20... Qf6 {[%clk
0:00:22.5]} 21. Bf4 {[%clk 0:00:54.5]} 21... Rad8 {[%clk 0:00:19.2]} 22. Bd6
{[%clk 0:00:53.2]} 22... Rfe8 {[%clk 0:00:19.8]} 23. Nf1 {[%clk 0:00:46.5]}
23... Ne5 {[%clk 0:00:19.9]} 24. Bxe5 {[%clk 0:00:38.4]} 24... Qxe5 {[%clk
0:00:20.1]} 25. Ne3 {[%clk 0:00:38.4]} 25... h5 {[%clk 0:00:16.4]} 26. c6 {[%clk
0:00:34.5]} 26... bxc6 {[%clk 0:00:15.4]} 27. Rxc6 {[%clk 0:00:35.4]} 27... Kh7
{[%clk 0:00:13.5]} 28. b4 {[%clk 0:00:28.4]} 28... Rd7 {[%clk 0:00:13.8]} 29.
Qa6 {[%clk 0:00:26.7]} 29... Red8 {[%clk 0:00:11.5]} 30. Rxg6 {[%clk 0:00:24.2]}
30... f4 {[%clk 0:00:12]} 31. Nc4 {[%clk 0:00:18.7]} 31... Qf5 {[%clk
0:00:12.3]} 32. Re6 {[%clk 0:00:13.3]} 32... e3 {[%clk 0:00:12.2]} 33. fxe3
{[%clk 0:00:11.9]} 33... f3 {[%clk 0:00:12.6]} 34. Rf1 {[%clk 0:00:11.5]} 34...
Rd1 {[%clk 0:00:12.2]} 35. Nd6 {[%clk 0:00:06.2]} 35... f2+ {[%clk 0:00:11.7]}
36. Kh2 {[%clk 0:00:05.8]} 36... R8xd6 {[%clk 0:00:10.6]} 37. Rxd6 {[%clk
0:00:05.1]} 37... Rxf1 {[%clk 0:00:10.8]} 38. Qxf1 {[%clk 0:00:05.8]} 38... Qe5+
{[%clk 0:00:10.4]} 39. g3 {[%clk 0:00:05.1]} 39... Qxd6 {[%clk 0:00:10.6]} 40.
Qxf2 {[%clk 0:00:05.7]} 40... Qf6 {[%clk 0:00:11]} 41. Qc2+ {[%clk 0:00:05.4]}
41... Kh6 {[%clk 0:00:10.1]} 42. Kg2 {[%clk 0:00:05.3]} 42... Qb2 {[%clk
0:00:10.7]} 43. Qxb2 {[%clk 0:00:05.5]} 43... Bxb2 {[%clk 0:00:11.5]} 44. a4
{[%clk 0:00:06.1]} 44... Kg6 {[%clk 0:00:11.8]} 45. b5 {[%clk 0:00:06.4]} 45...
Bc3 {[%clk 0:00:12]} 46. Kf3 {[%clk 0:00:05.8]} 46... Kf5 {[%clk 0:00:12.6]} 47.
e4+ {[%clk 0:00:03.2]} 47... Ke5 {[%clk 0:00:12.5]} 48. Ke3 {[%clk 0:00:04.1]}
48... Bd4+ {[%clk 0:00:12.3]} 49. Kd3 {[%clk 0:00:04.5]} 49... Bb6 {[%clk
0:00:12.9]} 50. g4 {[%clk 0:00:04.9]} 50... hxg4 {[%clk 0:00:13.3]} 51. hxg4
{[%clk 0:00:05.8]} 51... Kf4 {[%clk 0:00:13.8]} 52. Kc4 {[%clk 0:00:06.3]} 52...
Kxe4 {[%clk 0:00:14]} 53. g5 {[%clk 0:00:06.5]} 53... Kf5 {[%clk 0:00:14.1]} 54.
Kd5 {[%clk 0:00:06.8]} 54... Kxg5 {[%clk 0:00:14.1]} 55. Kc6 {[%clk 0:00:07.4]}
55... Kf5 {[%clk 0:00:14.1]} 56. Kb7 {[%clk 0:00:07.6]} 56... Ke5 {[%clk
0:00:13.8]} 57. Ka6 {[%clk 0:00:07.7]} 57... Kd5 {[%clk 0:00:13.6]} 58. a5
{[%clk 0:00:08.1]} 58... Bd4 {[%clk 0:00:14.2]} 59. Kb7 {[%clk 0:00:04.8]} 59...
Kc4 {[%clk 0:00:13.3]} 60. b6 {[%clk 0:00:04.9]} 60... axb6 {[%clk 0:00:12.7]}
61. axb6 {[%clk 0:00:05.8]} 61... Kb5 {[%clk 0:00:13.1]} 62. Kc8 {[%clk
0:00:05.4]} 62... Bxb6 {[%clk 0:00:13.3]} 1/2-1/2

[Event "*** Titled Tuesday Blitz"]
[Site "Chess.com"]
[Date "2020.04.28"]
[Round "1"]
[White "stasiek18"]
[Black "Bubi6"]
[Result "1-0"]
[WhiteElo "2350"]
[BlackElo "2642"]
[TimeControl "180+1"]
[EndTime "10:08:15 PDT"]
[Termination "stasiek18 won by resignation"]

1. d4 {[%clk 0:03:00.9]} 1... c5 {[%clk 0:02:59.8]} 2. d5 {[%clk 0:03:00.1]}
2... e6 {[%clk 0:03:00.4]} 3. e4 {[%clk 0:02:56.1]} 3... exd5 {[%clk 0:03:00.7]}
4. exd5 {[%clk 0:02:55.7]} 4... d6 {[%clk 0:03:01.6]} 5. Bd3 {[%clk 0:02:50.4]}
5... Ne7 {[%clk 0:03:02.5]} 6. c4 {[%clk 0:02:49.9]} 6... Ng6 {[%clk 0:03:02.1]}
7. Nc3 {[%clk 0:02:48.5]} 7... Be7 {[%clk 0:03:02]} 8. h3 {[%clk 0:02:47.1]}
8... O-O {[%clk 0:03:01.7]} 9. Nf3 {[%clk 0:02:47.2]} 9... a6 {[%clk 0:03:00.9]}
10. O-O {[%clk 0:02:47.4]} 10... Nd7 {[%clk 0:03:01.3]} 11. Re1 {[%clk
0:02:46.3]} 11... Nde5 {[%clk 0:03:01.3]} 12. Bf1 {[%clk 0:02:46.3]} 12... Bf5
{[%clk 0:02:54.6]} 13. Nxe5 {[%clk 0:02:40.5]} 13... Nxe5 {[%clk 0:02:53.2]} 14.
Bf4 {[%clk 0:02:40.5]} 14... Bf6 {[%clk 0:02:52]} 15. Qb3 {[%clk 0:02:23.9]}
15... Rb8 {[%clk 0:02:46.1]} 16. a4 {[%clk 0:02:16.6]} 16... Re8 {[%clk
0:02:45.5]} 17. Re3 {[%clk 0:02:13.8]} 17... Bg5 {[%clk 0:02:21.4]} 18. Bxg5
{[%clk 0:02:09.9]} 18... Qxg5 {[%clk 0:02:21.8]} 19. Qb6 {[%clk 0:01:50.8]}
19... Qg6 {[%clk 0:02:04.2]} 20. Kh2 {[%clk 0:01:40.8]} 20... Red8 {[%clk
0:01:37.2]} 21. Rae1 {[%clk 0:01:38.8]} 21... Nd7 {[%clk 0:01:37.6]} 22. Qb3
{[%clk 0:01:34.3]} 22... Ne5 {[%clk 0:01:28.3]} 23. a5 {[%clk 0:01:32.5]} 23...
h5 {[%clk 0:01:27.4]} 24. Qb6 {[%clk 0:01:30.6]} 24... Nd7 {[%clk 0:01:25]} 25.
Qb3 {[%clk 0:01:28]} 25... Nf6 {[%clk 0:01:24.9]} 26. Re7 {[%clk 0:01:16.3]}
26... Rd7 {[%clk 0:01:24.8]} 27. Qb6 {[%clk 0:01:07.2]} 27... Rbd8 {[%clk
0:01:10.8]} 28. Qb3 {[%clk 0:01:01.8]} 28... h4 {[%clk 0:01:02.3]} 29. Na4
{[%clk 0:01:00.8]} 29... Qg5 {[%clk 0:01:01.8]} 30. R7e3 {[%clk 0:00:53.6]}
30... Qf4+ {[%clk 0:00:59]} 31. Kg1 {[%clk 0:00:53.5]} 31... Rb8 {[%clk
0:00:51.7]} 32. Rf3 {[%clk 0:00:51.2]} 32... Qg5 {[%clk 0:00:49.9]} 33. Qe3
{[%clk 0:00:49.4]} 33... Qg6 {[%clk 0:00:46.1]} 34. Nb6 {[%clk 0:00:45.3]} 34...
Rdd8 {[%clk 0:00:34.9]} 35. Qf4 {[%clk 0:00:45.7]} 35... Qh5 {[%clk 0:00:13.8]}
36. Qxf5 {[%clk 0:00:44.6]} 36... Qxf5 {[%clk 0:00:12.2]} 37. Rxf5 {[%clk
0:00:44.6]} 37... Re8 {[%clk 0:00:13.1]} 38. Rxe8+ {[%clk 0:00:30.2]} 38... Rxe8
{[%clk 0:00:14]} 39. Rf3 {[%clk 0:00:29.9]} 39... Re1 {[%clk 0:00:14.1]} 40. Re3
{[%clk 0:00:23.2]} 40... Ra1 {[%clk 0:00:14.1]} 41. Nc8 {[%clk 0:00:21.6]} 41...
Rxa5 {[%clk 0:00:10.4]} 42. Nxd6 {[%clk 0:00:21.6]} 42... Ra1 {[%clk 0:00:10.4]}
43. Nxb7 {[%clk 0:00:20.4]} 43... Nd7 {[%clk 0:00:07.8]} 44. Re7 {[%clk
0:00:18.6]} 44... Nb6 {[%clk 0:00:07.5]} 45. d6 {[%clk 0:00:17.4]} 45... Rd1
{[%clk 0:00:03.2]} 46. Rc7 {[%clk 0:00:11.3]} 46... Kh7 {[%clk 0:00:03.3]} 47.
Rxc5 {[%clk 0:00:10.5]} 47... Nd7 {[%clk 0:00:03.8]} 48. Rc7 {[%clk 0:00:10]}
48... Ne5 {[%clk 0:00:02.4]} 49. c5 {[%clk 0:00:09.7]} 49... Nd3 {[%clk
0:00:02.2]} 50. Rxf7 {[%clk 0:00:09.3]} 50... Nf4 {[%clk 0:00:03.1]} 51. g3
{[%clk 0:00:07.6]} 51... Rc1 {[%clk 0:00:03.9]} 52. gxf4 {[%clk 0:00:07.5]}
52... Rd1 {[%clk 0:00:02.9]} 53. d7 {[%clk 0:00:07.3]} 53... Rd4 {[%clk
0:00:03.8]} 54. d8=Q {[%clk 0:00:06.9]} 54... Rxd8 {[%clk 0:00:04.4]} 55. Nxd8
{[%clk 0:00:07.7]} 55... Kg6 {[%clk 0:00:03.5]} 56. Ra7 {[%clk 0:00:08.6]} 56...
Kf6 {[%clk 0:00:02.2]} 57. c6 {[%clk 0:00:09.5]} 57... Kf5 {[%clk 0:00:02.8]}
58. c7 {[%clk 0:00:10.4]} 58... Ke4 {[%clk 0:00:03.6]} 59. c8=Q {[%clk
0:00:10.8]} 59... Kxf4 {[%clk 0:00:03.9]} 60. Qe6 {[%clk 0:00:10.6]} 1-0